[Event "Titled Tuesday Blitz June 13 Early 2023"]
[White "Bruedigam, Martin"]
[Black "Camilla_Lee"]
[WhiteFideId "24608033"]
[WhiteElo "2331"]
[BlackElo "2580"]
[Result "1-0"]
[Round "10"]
[TimeControl "180+2"]
[Date "2023.06.13"]
[WhiteClock "0:00:10"]
[BlackClock "0:00:00"]
[Board "87"]

1. d4 {[%clk 0:03:00]}  Nf6 {[%clk 0:03:00]} 2. c4 {[%clk 0:03:00]}  g6 {[%clk 0:03:00]} 3. f3 {[%clk 0:02:59]}  d5 {[%clk 0:02:58]} 4. cxd5 {[%clk 0:03:00]}  Nxd5 {[%clk 0:02:59]} 5. e4 {[%clk 0:03:01]}  Nb6 {[%clk 0:02:59]} 6. Nc3 {[%clk 0:03:01]}  Bg7 {[%clk 0:03:00]} 7. Be3 {[%clk 0:03:01]}  O-O {[%clk 0:02:55]} 8. Qd2 {[%clk 0:03:01]}  e5 {[%clk 0:02:56]} 9. d5 {[%clk 0:03:01]}  c6 {[%clk 0:02:57]} 10. h4 {[%clk 0:03:01]}  cxd5 {[%clk 0:02:56]} 11. exd5 {[%clk 0:03:02]}  h5 {[%clk 0:02:45]} 12. O-O-O {[%clk 0:02:52]}  Bf5 {[%clk 0:02:18]} 13. g4 {[%clk 0:02:44]}  hxg4 {[%clk 0:02:17]} 14. h5 {[%clk 0:02:44]}  gxh5 {[%clk 0:01:59]} 15. Rxh5 {[%clk 0:02:17]}  Bg6 {[%clk 0:01:59]} 16. Rg5 {[%clk 0:02:12]}  Na6 {[%clk 0:01:43]} 17. Rxg4 {[%clk 0:01:36]}  Rc8 {[%clk 0:01:43]} 18. Bd3 {[%clk 0:01:30]}  Bxd3 {[%clk 0:01:28]} 19. Qxd3 {[%clk 0:01:31]}  Nb4 {[%clk 0:01:28]} 20. Rxb4 {[%clk 0:01:30]}  Qd7 {[%clk 0:01:17]} 21. Bxb6 {[%clk 0:01:22]}  axb6 {[%clk 0:01:17]} 22. Ne2 {[%clk 0:01:22]}  f5 {[%clk 0:01:17]} 23. Kb1 {[%clk 0:01:21]}  e4 {[%clk 0:01:13]} 24. fxe4 {[%clk 0:01:21]}  fxe4 {[%clk 0:01:14]} 25. Qxe4 {[%clk 0:01:14]}  Rce8 {[%clk 0:01:14]} 26. Qg4 {[%clk 0:01:13]}  Qd6 {[%clk 0:01:09]} 27. Rg1 {[%clk 0:01:10]}  Rf7 {[%clk 0:01:09]} 28. Rf4 {[%clk 0:01:02]}  Ref8 {[%clk 0:01:04]} 29. Ne4 {[%clk 0:00:44]}  Qh6 {[%clk 0:00:55]} 30. d6 {[%clk 0:00:25]}  Rxf4 {[%clk 0:00:52]} 31. Nxf4 {[%clk 0:00:18]}  Rxf4 {[%clk 0:00:52]} 32. d7 {[%clk 0:00:12]}  Rf8 {[%clk 0:00:51]} 33. Ng5 {[%clk 0:00:09]}  Qg6+ {[%clk 0:00:45]} 34. Ka1 {[%clk 0:00:08]}  Qf6 {[%clk 0:00:45]} 35. Qc4+ {[%clk 0:00:08]}  Kh8 {[%clk 0:00:46]} 36. Rh1+ {[%clk 0:00:08]}  Bh6 {[%clk 0:00:47]} 37. Nf7+ {[%clk 0:00:06]}  Kg7 {[%clk 0:00:30]} 38. Nxh6 {[%clk 0:00:06]}  Rd8 {[%clk 0:00:26]} 39. Qg4+ {[%clk 0:00:06]}  Kf8 {[%clk 0:00:25]} 40. Nf5 {[%clk 0:00:06]}  Rxd7 {[%clk 0:00:22]} 41. a3 {[%clk 0:00:07]}  Rf7 {[%clk 0:00:21]} 42. Qb4+ {[%clk 0:00:06]}  Ke8 {[%clk 0:00:20]} 43. Nd6+ {[%clk 0:00:06]}  Kd7 {[%clk 0:00:19]} 44. Nxf7 {[%clk 0:00:07]}  Qxf7 {[%clk 0:00:20]} 45. Rd1+ {[%clk 0:00:06]}  Kc7 {[%clk 0:00:21]} 46. Qc3+ {[%clk 0:00:06]}  Kb8 {[%clk 0:00:21]} 47. Rc1 {[%clk 0:00:07]}  Ka7 {[%clk 0:00:21]} 48. Qc2 {[%clk 0:00:08]}  Qf4 {[%clk 0:00:21]} 49. Qc3 {[%clk 0:00:09]}  Qe4 {[%clk 0:00:20]} 50. Qc2 {[%clk 0:00:08]}  Qf4 {[%clk 0:00:21]} 51. Rd1 {[%clk 0:00:08]}  Qg4 {[%clk 0:00:21]} 52. Rd3 {[%clk 0:00:09]}  Qg1+ {[%clk 0:00:20]} 53. Ka2 {[%clk 0:00:10]}  Qg8+ {[%clk 0:00:21]} 54. Rb3 {[%clk 0:00:11]}  Qd5 {[%clk 0:00:21]} 55. Qc3 {[%clk 0:00:11]}  Qf5 {[%clk 0:00:20]} 56. Qb4 {[%clk 0:00:12]}  Qe6 {[%clk 0:00:20]} 57. Qb5 {[%clk 0:00:13]}  Qd6 {[%clk 0:00:19]} 58. Kb1 {[%clk 0:00:14]}  Qg6+ {[%clk 0:00:19]} 59. Ka1 {[%clk 0:00:14]}  Qg1+ {[%clk 0:00:18]} 60. Ka2 {[%clk 0:00:15]}  Qg6 {[%clk 0:00:18]} 61. Qc4 {[%clk 0:00:15]}  Qd6 {[%clk 0:00:18]} 62. Rd3 {[%clk 0:00:15]}  Qf6 {[%clk 0:00:18]} 63. Rd5 {[%clk 0:00:15]}  Qg6 {[%clk 0:00:15]} 64. Qb4 {[%clk 0:00:14]}  Qc6 {[%clk 0:00:15]} 65. Qd6 {[%clk 0:00:14]}  Qc4+ {[%clk 0:00:15]} 66. Kb1 {[%clk 0:00:14]}  Qe4+ {[%clk 0:00:13]} 67. Rd3 {[%clk 0:00:14]}  Qe1+ {[%clk 0:00:12]} 68. Kc2 {[%clk 0:00:14]}  Qe2+ {[%clk 0:00:12]} 69. Kb3 {[%clk 0:00:15]}  Qe4 {[%clk 0:00:10]} 70. Qd5 {[%clk 0:00:15]}  Qg4 {[%clk 0:00:06]} 71. Qc4 {[%clk 0:00:16]}  Qf5 {[%clk 0:00:05]} 72. Qa4+ {[%clk 0:00:16]}  Kb8 {[%clk 0:00:05]} 73. Rc3 {[%clk 0:00:15]}  Qd5+ {[%clk 0:00:05]} 74. Qc4 {[%clk 0:00:14]}  Qd7 {[%clk 0:00:04]} 75. Ka2 {[%clk 0:00:13]}  Qf5 {[%clk 0:00:03]} 76. a4 {[%clk 0:00:13]}  Ka7 {[%clk 0:00:03]} 77. Qb5 {[%clk 0:00:12]}  Qg6 {[%clk 0:00:01]} 78. Rb3 {[%clk 0:00:11]}  Qe6 {[%clk 0:00:00]} 79. a5 {[%clk 0:00:10]} 1-0


[Site "https://www.chess.com"]

[Event "Titled Tuesday Blitz June 13 Early 2023"]
[White "Chos, Alexey"]
[Black "UNSTOPPABLE_LEGEND"]
[WhiteFideId "14117762"]
[WhiteElo "2234"]
[BlackElo "2467"]
[Result "0-1"]
[Round "10"]
[TimeControl "180+2"]
[Date "2023.06.13"]
[WhiteClock "0:00:00"]
[BlackClock "0:00:12"]
[Board "90"]

1. g4 {[%clk 0:02:35]}  d5 {[%clk 0:01:54]} 2. Bg2 {[%clk 0:02:36]}  c6 {[%clk 0:01:53]} 3. c4 {[%clk 0:02:35]}  dxc4 {[%clk 0:01:53]} 4. h3 {[%clk 0:02:34]}  h5 {[%clk 0:01:50]} 5. g5 {[%clk 0:02:29]}  e5 {[%clk 0:01:49]} 6. h4 {[%clk 0:02:20]}  Be6 {[%clk 0:01:41]} 7. Qc2 {[%clk 0:02:17]}  Nd7 {[%clk 0:01:40]} 8. Na3 {[%clk 0:02:04]}  Nb6 {[%clk 0:01:32]} 9. Nf3 {[%clk 0:02:01]}  Bd6 {[%clk 0:01:31]} 10. b3 {[%clk 0:01:57]}  cxb3 {[%clk 0:01:30]} 11. axb3 {[%clk 0:01:58]}  Ne7 {[%clk 0:01:30]} 12. Bb2 {[%clk 0:01:53]}  Ng6 {[%clk 0:01:28]} 13. O-O-O {[%clk 0:01:50]}  Qe7 {[%clk 0:01:00]} 14. Nc4 {[%clk 0:01:47]}  Nxc4 {[%clk 0:00:57]} 15. bxc4 {[%clk 0:01:48]}  a5 {[%clk 0:00:47]} 16. d4 {[%clk 0:01:46]}  exd4 {[%clk 0:00:41]} 17. Nxd4 {[%clk 0:01:47]}  Nf4 {[%clk 0:00:33]} 18. Bf3 {[%clk 0:01:29]}  O-O-O {[%clk 0:00:18]} 19. e3 {[%clk 0:01:03]}  Ng6 {[%clk 0:00:17]} 20. Be4 {[%clk 0:00:54]}  Ne5 {[%clk 0:00:16]} 21. c5 {[%clk 0:00:41]}  Bc7 {[%clk 0:00:14]} 22. g6 {[%clk 0:00:32]}  Rhf8 {[%clk 0:00:12]} 23. gxf7 {[%clk 0:00:26]}  Bxf7 {[%clk 0:00:11]} 24. Nf5 {[%clk 0:00:22]}  Qf6 {[%clk 0:00:11]} 25. f4 {[%clk 0:00:15]}  g6 {[%clk 0:00:06]} 26. Nd6+ {[%clk 0:00:15]}  Bxd6 {[%clk 0:00:07]} 27. cxd6 {[%clk 0:00:16]}  Rxd6 {[%clk 0:00:05]} 28. Bxe5 {[%clk 0:00:15]}  Rxd1+ {[%clk 0:00:06]} 29. Rxd1 {[%clk 0:00:14]}  Qe6 {[%clk 0:00:06]} 30. Qb2 {[%clk 0:00:14]}  Rd8 {[%clk 0:00:06]} 31. Rxd8+ {[%clk 0:00:13]}  Kxd8 {[%clk 0:00:06]} 32. Qb6+ {[%clk 0:00:14]}  Ke8 {[%clk 0:00:06]} 33. Qxb7 {[%clk 0:00:13]}  Qc4+ {[%clk 0:00:06]} 34. Bc2 {[%clk 0:00:10]}  Qf1+ {[%clk 0:00:06]} 35. Kb2 {[%clk 0:00:10]}  Qb5+ {[%clk 0:00:03]} 36. Qxb5 {[%clk 0:00:10]}  cxb5 {[%clk 0:00:04]} 37. Bd3 {[%clk 0:00:11]}  b4 {[%clk 0:00:04]} 38. Bb5+ {[%clk 0:00:11]}  Kd8 {[%clk 0:00:03]} 39. Bd4 {[%clk 0:00:11]}  Kc7 {[%clk 0:00:04]} 40. e4 {[%clk 0:00:10]}  Kb7 {[%clk 0:00:04]} 41. e5 {[%clk 0:00:09]}  Be6 {[%clk 0:00:04]} 42. Be8 {[%clk 0:00:08]}  Ka6 {[%clk 0:00:04]} 43. Bxg6 {[%clk 0:00:07]}  a4 {[%clk 0:00:05]} 44. Bc5 {[%clk 0:00:05]}  a3+ {[%clk 0:00:05]} 45. Ka1 {[%clk 0:00:05]}  Kb5 {[%clk 0:00:06]} 46. Bxb4 {[%clk 0:00:05]}  Kxb4 {[%clk 0:00:06]} 47. f5 {[%clk 0:00:05]}  Bd5 {[%clk 0:00:06]} 48. f6 {[%clk 0:00:05]}  Kc5 {[%clk 0:00:06]} 49. f7 {[%clk 0:00:05]}  Bxf7 {[%clk 0:00:07]} 50. Bxf7 {[%clk 0:00:05]}  Kc6 {[%clk 0:00:07]} 51. e6 {[%clk 0:00:06]}  Kd6 {[%clk 0:00:07]} 52. Ka2 {[%clk 0:00:06]}  Ke7 {[%clk 0:00:08]} 53. Kxa3 {[%clk 0:00:07]}  Kf6 {[%clk 0:00:09]} 54. Kb3 {[%clk 0:00:08]}  Ke7 {[%clk 0:00:10]} 55. Kc3 {[%clk 0:00:08]}  Kd6 {[%clk 0:00:11]} 56. Kd3 {[%clk 0:00:00]}  Ke7 {[%clk 0:00:12]} 0-1


[Site "https://www.chess.com"]

[Event "Titled Tuesday Blitz June 13 Early 2023"]
[White "Garrido, Denis"]
[Black "Malyi, Viacheslav"]
[WhiteFideId "601217"]
[BlackFideId "14123983"]
[WhiteElo "2361"]
[BlackElo "2291"]
[Result "1/2-1/2"]
[Round "10"]
[TimeControl "180+2"]
[Date "2023.06.13"]
[WhiteClock "0:00:03"]
[BlackClock "0:00:11"]
[Board "92"]

1. e4 {[%clk 0:03:00]}  e5 {[%clk 0:02:58]} 2. Nf3 {[%clk 0:03:00]}  Nc6 {[%clk 0:02:58]} 3. Bb5 {[%clk 0:03:00]}  a6 {[%clk 0:02:57]} 4. Ba4 {[%clk 0:03:00]}  Nf6 {[%clk 0:02:57]} 5. O-O {[%clk 0:03:01]}  b5 {[%clk 0:02:57]} 6. Bb3 {[%clk 0:03:00]}  Bc5 {[%clk 0:02:58]} 7. c3 {[%clk 0:03:00]}  d6 {[%clk 0:02:58]} 8. a4 {[%clk 0:03:00]}  Rb8 {[%clk 0:02:57]} 9. d4 {[%clk 0:02:59]}  Bb6 {[%clk 0:02:57]} 10. a5 {[%clk 0:03:00]}  Ba7 {[%clk 0:02:57]} 11. h3 {[%clk 0:03:00]}  O-O {[%clk 0:02:57]} 12. Be3 {[%clk 0:03:00]}  Ra8 {[%clk 0:02:56]} 13. Nbd2 {[%clk 0:02:58]}  Qe7 {[%clk 0:02:56]} 14. Re1 {[%clk 0:02:54]}  Nd8 {[%clk 0:02:56]} 15. dxe5 {[%clk 0:02:52]}  dxe5 {[%clk 0:02:55]} 16. Bxa7 {[%clk 0:02:52]}  Rxa7 {[%clk 0:02:56]} 17. Nf1 {[%clk 0:02:50]}  c5 {[%clk 0:02:54]} 18. N3h2 {[%clk 0:02:42]}  c4 {[%clk 0:02:52]} 19. Bc2 {[%clk 0:02:41]}  Ne6 {[%clk 0:02:50]} 20. Ne3 {[%clk 0:02:18]}  Nf4 {[%clk 0:02:46]} 21. Qf3 {[%clk 0:02:14]}  Rd8 {[%clk 0:02:40]} 22. Nhg4 {[%clk 0:02:07]}  Nxg4 {[%clk 0:02:36]} 23. hxg4 {[%clk 0:02:08]}  Be6 {[%clk 0:02:15]} 24. g3 {[%clk 0:01:54]}  Nd3 {[%clk 0:02:15]} 25. Bxd3 {[%clk 0:01:55]}  Rxd3 {[%clk 0:02:16]} 26. Kg2 {[%clk 0:01:51]}  Rad7 {[%clk 0:02:15]} 27. Nf5 {[%clk 0:01:42]}  Bxf5 {[%clk 0:02:13]} 28. Qxf5 {[%clk 0:01:43]}  Qe6 {[%clk 0:02:08]} 29. Qxe6 {[%clk 0:01:26]}  fxe6 {[%clk 0:02:09]} 30. Re2 {[%clk 0:01:10]}  Kf7 {[%clk 0:02:01]} 31. f4 {[%clk 0:01:05]}  exf4 {[%clk 0:01:56]} 32. gxf4 {[%clk 0:01:06]}  Rd1 {[%clk 0:01:52]} 33. Rxd1 {[%clk 0:01:01]}  Rxd1 {[%clk 0:01:53]} 34. Kf3 {[%clk 0:01:01]}  Ra1 {[%clk 0:01:52]} 35. Rh2 {[%clk 0:01:01]}  h6 {[%clk 0:01:51]} 36. Rd2 {[%clk 0:00:55]}  Ke7 {[%clk 0:01:48]} 37. g5 {[%clk 0:00:49]}  hxg5 {[%clk 0:01:46]} 38. fxg5 {[%clk 0:00:43]}  Rxa5 {[%clk 0:01:42]} 39. Kf4 {[%clk 0:00:41]}  Ra1 {[%clk 0:01:43]} 40. Rh2 {[%clk 0:00:35]}  Rf1+ {[%clk 0:01:41]} 41. Ke5 {[%clk 0:00:34]}  Rg1 {[%clk 0:01:41]} 42. Rh5 {[%clk 0:00:31]}  a5 {[%clk 0:01:41]} 43. Kf4 {[%clk 0:00:30]}  Kd6 {[%clk 0:01:39]} 44. Rh7 {[%clk 0:00:28]}  e5+ {[%clk 0:01:38]} 45. Kf5 {[%clk 0:00:28]}  Rf1+ {[%clk 0:01:13]} 46. Kg6 {[%clk 0:00:27]}  Rf2 {[%clk 0:01:14]} 47. Kxg7 {[%clk 0:00:19]}  Rxb2 {[%clk 0:01:15]} 48. g6 {[%clk 0:00:19]}  b4 {[%clk 0:01:10]} 49. Kf8 {[%clk 0:00:16]}  Rg2 {[%clk 0:01:03]} 50. g7 {[%clk 0:00:15]}  Kc5 {[%clk 0:00:58]} 51. Rh5 {[%clk 0:00:12]}  bxc3 {[%clk 0:00:51]} 52. Rxe5+ {[%clk 0:00:08]}  Kb4 {[%clk 0:00:51]} 53. Rf5 {[%clk 0:00:03]}  c2 {[%clk 0:00:44]} 54. Rf1 {[%clk 0:00:02]}  Kb3 {[%clk 0:00:19]} 55. e5 {[%clk 0:00:02]}  Kb2 {[%clk 0:00:09]} 56. e6 {[%clk 0:00:02]}  c1=Q {[%clk 0:00:10]} 57. Rxc1 {[%clk 0:00:02]}  Kxc1 {[%clk 0:00:11]} 58. g8=Q {[%clk 0:00:02]}  Rxg8+ {[%clk 0:00:10]} 59. Kxg8 {[%clk 0:00:03]}  c3 {[%clk 0:00:11]} 60. e7 {[%clk 0:00:03]}  c2 {[%clk 0:00:12]} 61. e8=Q {[%clk 0:00:04]}  Kb1 {[%clk 0:00:12]} 62. Qb5+ {[%clk 0:00:04]}  Ka1 {[%clk 0:00:12]} 63. Qxa5+ {[%clk 0:00:04]}  Kb1 {[%clk 0:00:11]} 64. Qb4+ {[%clk 0:00:04]}  Ka1 {[%clk 0:00:11]} 65. Qc3+ {[%clk 0:00:04]}  Kb1 {[%clk 0:00:11]} 66. Qb3+ {[%clk 0:00:05]}  Ka1 {[%clk 0:00:11]} 67. Qxc2 {[%clk 0:00:03]} 1/2-1/2


[Site "https://www.chess.com"]

[Event "Titled Tuesday Blitz June 13 Early 2023"]
[White "Mogirzan, Matei-Valeriu"]
[Black "Deng, Henry"]
[WhiteFideId "1257455"]
[BlackFideId "30965454"]
[WhiteElo "1733"]
[BlackElo "2558"]
[Result "0-1"]
[Round "10"]
[TimeControl "180+2"]
[Date "2023.06.13"]
[WhiteClock "0:00:00"]
[BlackClock "0:00:48"]
[Board "96"]

1. e4 {[%clk 0:03:00]}  c5 {[%clk 0:02:58]} 2. Nf3 {[%clk 0:03:00]}  e6 {[%clk 0:02:58]} 3. d4 {[%clk 0:03:00]}  cxd4 {[%clk 0:02:59]} 4. Nxd4 {[%clk 0:03:00]}  Nf6 {[%clk 0:02:59]} 5. Nc3 {[%clk 0:03:00]}  Nc6 {[%clk 0:02:59]} 6. Nxc6 {[%clk 0:03:00]}  bxc6 {[%clk 0:02:59]} 7. e5 {[%clk 0:03:00]}  Nd5 {[%clk 0:03:00]} 8. Bd3 {[%clk 0:02:57]}  Nxc3 {[%clk 0:02:57]} 9. bxc3 {[%clk 0:02:58]}  Qa5 {[%clk 0:02:55]} 10. O-O {[%clk 0:02:53]}  Qxe5 {[%clk 0:02:50]} 11. Qf3 {[%clk 0:02:45]}  Bd6 {[%clk 0:02:42]} 12. g3 {[%clk 0:02:39]}  Qf6 {[%clk 0:02:42]} 13. Qg4 {[%clk 0:02:37]}  h5 {[%clk 0:02:41]} 14. Qg5 {[%clk 0:02:29]}  Qxg5 {[%clk 0:02:41]} 15. Bxg5 {[%clk 0:02:30]}  f6 {[%clk 0:02:41]} 16. Bg6+ {[%clk 0:02:29]}  Ke7 {[%clk 0:02:41]} 17. Be3 {[%clk 0:02:29]}  h4 {[%clk 0:02:41]} 18. Rad1 {[%clk 0:02:27]}  hxg3 {[%clk 0:02:39]} 19. fxg3 {[%clk 0:02:28]}  Ba6 {[%clk 0:02:37]} 20. Rf2 {[%clk 0:02:26]}  Be5 {[%clk 0:02:36]} 21. Rfd2 {[%clk 0:02:20]}  d5 {[%clk 0:02:33]} 22. Bc5+ {[%clk 0:02:18]}  Bd6 {[%clk 0:02:33]} 23. Be3 {[%clk 0:02:11]}  Bc4 {[%clk 0:02:25]} 24. a4 {[%clk 0:02:06]}  a6 {[%clk 0:02:24]} 25. Re1 {[%clk 0:02:03]}  Rab8 {[%clk 0:02:22]} 26. Kg2 {[%clk 0:01:47]}  Be5 {[%clk 0:02:20]} 27. Bd4 {[%clk 0:01:45]}  Bxd4 {[%clk 0:02:19]} 28. cxd4 {[%clk 0:01:46]}  Kd6 {[%clk 0:02:16]} 29. h4 {[%clk 0:01:44]}  Rb4 {[%clk 0:02:13]} 30. c3 {[%clk 0:01:38]}  Rxa4 {[%clk 0:02:13]} 31. Rb1 {[%clk 0:01:39]}  Rc8 {[%clk 0:02:05]} 32. Rb7 {[%clk 0:01:37]}  Rc7 {[%clk 0:02:06]} 33. Rb8 {[%clk 0:01:35]}  Ra2 {[%clk 0:02:06]} 34. Rxa2 {[%clk 0:01:25]}  Bxa2 {[%clk 0:02:07]} 35. g4 {[%clk 0:01:24]}  Bc4 {[%clk 0:02:01]} 36. Ra8 {[%clk 0:01:08]}  Rb7 {[%clk 0:01:52]} 37. h5 {[%clk 0:01:02]}  Kc7 {[%clk 0:01:48]} 38. Re8 {[%clk 0:00:59]}  Kd6 {[%clk 0:01:44]} 39. Ra8 {[%clk 0:00:55]}  e5 {[%clk 0:01:44]} 40. Bf5 {[%clk 0:00:50]}  exd4 {[%clk 0:01:40]} 41. cxd4 {[%clk 0:00:50]}  Kc7 {[%clk 0:01:41]} 42. Rf8 {[%clk 0:00:37]}  Kb6 {[%clk 0:01:28]} 43. h6 {[%clk 0:00:33]}  gxh6 {[%clk 0:00:54]} 44. Rxf6 {[%clk 0:00:32]}  a5 {[%clk 0:00:54]} 45. Rxh6 {[%clk 0:00:29]}  a4 {[%clk 0:00:55]} 46. Rh1 {[%clk 0:00:20]}  a3 {[%clk 0:00:53]} 47. Ra1 {[%clk 0:00:17]}  a2 {[%clk 0:00:52]} 48. Bb1 {[%clk 0:00:15]}  axb1=Q {[%clk 0:00:49]} 49. Rxb1+ {[%clk 0:00:16]}  Kc7 {[%clk 0:00:49]} 50. Re1 {[%clk 0:00:11]}  Kd6 {[%clk 0:00:49]} 51. Kg3 {[%clk 0:00:07]}  Bd3 {[%clk 0:00:49]} 52. Kf4 {[%clk 0:00:00]}  Rf7+ {[%clk 0:00:48]} 0-1


[Site "https://www.chess.com"]

[Event "Titled Tuesday Blitz June 13 Early 2023"]
[White "Szyszylo, Rafal"]
[Black "Girya, Olga"]
[WhiteFideId "1109626"]
[BlackFideId "4195752"]
[WhiteElo "1951"]
[BlackElo "2263"]
[Result "0-1"]
[Round "10"]
[TimeControl "180+2"]
[Date "2023.06.13"]
[WhiteClock "0:00:00"]
[BlackClock "0:00:02"]
[Board "97"]

1. e4 {[%clk 0:03:00]}  e5 {[%clk 0:02:59]} 2. Bc4 {[%clk 0:02:59]}  Nf6 {[%clk 0:02:57]} 3. Nc3 {[%clk 0:02:57]}  Bc5 {[%clk 0:02:55]} 4. d3 {[%clk 0:02:56]}  Nc6 {[%clk 0:02:50]} 5. f4 {[%clk 0:02:55]}  exf4 {[%clk 0:02:47]} 6. Bxf4 {[%clk 0:02:48]}  d6 {[%clk 0:02:47]} 7. Nf3 {[%clk 0:02:37]}  Bg4 {[%clk 0:02:47]} 8. Qd2 {[%clk 0:02:22]}  a6 {[%clk 0:02:36]} 9. Bg5 {[%clk 0:02:09]}  h6 {[%clk 0:02:33]} 10. Bh4 {[%clk 0:01:48]}  Bxf3 {[%clk 0:02:32]} 11. gxf3 {[%clk 0:01:48]}  Ne5 {[%clk 0:02:33]} 12. Qg2 {[%clk 0:01:44]}  g5 {[%clk 0:02:27]} 13. Bf2 {[%clk 0:01:34]}  Bxf2+ {[%clk 0:02:24]} 14. Qxf2 {[%clk 0:01:34]}  Nxc4 {[%clk 0:02:24]} 15. dxc4 {[%clk 0:01:35]}  Qe7 {[%clk 0:02:16]} 16. O-O-O {[%clk 0:01:34]}  O-O-O {[%clk 0:01:18]} 17. Nd5 {[%clk 0:01:28]}  Nxd5 {[%clk 0:01:17]} 18. cxd5 {[%clk 0:01:29]}  Kb8 {[%clk 0:01:16]} 19. c4 {[%clk 0:01:22]}  f5 {[%clk 0:01:15]} 20. Rde1 {[%clk 0:01:21]}  Qf6 {[%clk 0:01:03]} 21. Qc2 {[%clk 0:01:03]}  fxe4 {[%clk 0:00:49]} 22. fxe4 {[%clk 0:01:00]}  Rhf8 {[%clk 0:00:48]} 23. Kb1 {[%clk 0:01:00]}  Rde8 {[%clk 0:00:37]} 24. c5 {[%clk 0:00:59]}  Qf2 {[%clk 0:00:36]} 25. Re2 {[%clk 0:00:58]}  Qxc5 {[%clk 0:00:36]} 26. Qxc5 {[%clk 0:00:55]}  dxc5 {[%clk 0:00:36]} 27. e5 {[%clk 0:00:53]}  Rf5 {[%clk 0:00:29]} 28. Rhe1 {[%clk 0:00:52]}  h5 {[%clk 0:00:28]} 29. Kc2 {[%clk 0:00:36]}  g4 {[%clk 0:00:28]} 30. Kd3 {[%clk 0:00:36]}  h4 {[%clk 0:00:23]} 31. a4 {[%clk 0:00:35]}  b5 {[%clk 0:00:21]} 32. axb5 {[%clk 0:00:34]}  axb5 {[%clk 0:00:21]} 33. b4 {[%clk 0:00:27]}  cxb4 {[%clk 0:00:12]} 34. Kd4 {[%clk 0:00:27]}  g3 {[%clk 0:00:11]} 35. hxg3 {[%clk 0:00:27]}  hxg3 {[%clk 0:00:12]} 36. e6 {[%clk 0:00:25]}  Rg5 {[%clk 0:00:05]} 37. Kc5 {[%clk 0:00:22]}  Kb7 {[%clk 0:00:05]} 38. e7 {[%clk 0:00:15]}  c6 {[%clk 0:00:04]} 39. Re5 {[%clk 0:00:11]}  Rxe5 {[%clk 0:00:03]} 40. Rxe5 {[%clk 0:00:12]}  cxd5 {[%clk 0:00:03]} 41. Kd6 {[%clk 0:00:11]}  b3 {[%clk 0:00:03]} 42. Kd7 {[%clk 0:00:11]}  b2 {[%clk 0:00:03]} 43. Re1 {[%clk 0:00:08]}  Rxe7+ {[%clk 0:00:01]} 44. Kxe7 {[%clk 0:00:08]}  Kc6 {[%clk 0:00:02]} 45. Ke6 {[%clk 0:00:06]}  Kc5 {[%clk 0:00:02]} 46. Re5 {[%clk 0:00:06]}  b1=Q {[%clk 0:00:02]} 47. Rg5 {[%clk 0:00:01]}  Qe1+ {[%clk 0:00:02]} 48. Kf6 {[%clk 0:00:00]}  Qe3 {[%clk 0:00:02]} 0-1


[Site "https://www.chess.com"]

[Event "Titled Tuesday Blitz June 13 Early 2023"]
[White "Pinheiro, Iung Alicio de O."]
[Black "Ansh M Shah"]
[WhiteFideId "2104350"]
[BlackFideId "25033379"]
[WhiteElo "2283"]
[BlackElo "2084"]
[Result "1-0"]
[Round "10"]
[TimeControl "180+2"]
[Date "2023.06.13"]
[WhiteClock "0:00:15"]
[BlackClock "0:00:17"]
[Board "99"]

1. e4 {[%clk 0:02:53]}  c6 {[%clk 0:02:57]} 2. Nc3 {[%clk 0:02:51]}  d5 {[%clk 0:02:58]} 3. Nf3 {[%clk 0:02:51]}  Bg4 {[%clk 0:02:57]} 4. h3 {[%clk 0:02:51]}  Bxf3 {[%clk 0:02:58]} 5. Qxf3 {[%clk 0:02:51]}  e6 {[%clk 0:02:58]} 6. a3 {[%clk 0:02:49]}  Bc5 {[%clk 0:02:57]} 7. d3 {[%clk 0:02:41]}  Nd7 {[%clk 0:02:56]} 8. g4 {[%clk 0:02:41]}  Ne7 {[%clk 0:02:55]} 9. h4 {[%clk 0:02:33]}  d4 {[%clk 0:02:55]} 10. Nb1 {[%clk 0:02:24]}  f6 {[%clk 0:02:53]} 11. Qg3 {[%clk 0:02:19]}  a5 {[%clk 0:02:46]} 12. Nd2 {[%clk 0:01:59]}  a4 {[%clk 0:02:44]} 13. Nc4 {[%clk 0:01:55]}  e5 {[%clk 0:02:43]} 14. g5 {[%clk 0:01:49]}  b5 {[%clk 0:02:40]} 15. Nd2 {[%clk 0:01:48]}  Qc7 {[%clk 0:02:28]} 16. Bh3 {[%clk 0:01:47]}  O-O-O {[%clk 0:02:27]} 17. b3 {[%clk 0:01:40]}  axb3 {[%clk 0:02:24]} 18. Nxb3 {[%clk 0:01:38]}  Bb6 {[%clk 0:02:24]} 19. a4 {[%clk 0:01:37]}  bxa4 {[%clk 0:02:24]} 20. Rxa4 {[%clk 0:01:36]}  Kb7 {[%clk 0:02:25]} 21. Bd2 {[%clk 0:01:19]}  Ra8 {[%clk 0:02:23]} 22. Rc4 {[%clk 0:01:10]}  Nc8 {[%clk 0:02:00]} 23. Qg4 {[%clk 0:00:44]}  Rd8 {[%clk 0:01:57]} 24. Bb4 {[%clk 0:00:41]}  Nd6 {[%clk 0:01:55]} 25. Bxd6 {[%clk 0:00:41]}  Qxd6 {[%clk 0:01:56]} 26. Ke2 {[%clk 0:00:41]}  Kc7 {[%clk 0:01:39]} 27. Qh5 {[%clk 0:00:35]}  g6 {[%clk 0:01:06]} 28. Qxh7 {[%clk 0:00:32]}  fxg5 {[%clk 0:01:07]} 29. Bxd7 {[%clk 0:00:20]}  Rxd7 {[%clk 0:01:02]} 30. Qh6 {[%clk 0:00:20]}  gxh4 {[%clk 0:00:57]} 31. Rxh4 {[%clk 0:00:21]}  Rf8 {[%clk 0:00:51]} 32. Qg5 {[%clk 0:00:20]}  Rdf7 {[%clk 0:00:49]} 33. Rh2 {[%clk 0:00:21]}  Qf6 {[%clk 0:00:47]} 34. Qxf6 {[%clk 0:00:21]}  Rxf6 {[%clk 0:00:48]} 35. Ra4 {[%clk 0:00:18]}  g5 {[%clk 0:00:42]} 36. Nd2 {[%clk 0:00:18]}  Kb7 {[%clk 0:00:41]} 37. Rg2 {[%clk 0:00:18]}  Bd8 {[%clk 0:00:40]} 38. Nc4 {[%clk 0:00:19]}  Bc7 {[%clk 0:00:39]} 39. Rb4+ {[%clk 0:00:17]}  Kc8 {[%clk 0:00:38]} 40. Ra4 {[%clk 0:00:17]}  Kd7 {[%clk 0:00:37]} 41. Ra7 {[%clk 0:00:18]}  Kc8 {[%clk 0:00:37]} 42. Ra6 {[%clk 0:00:15]}  Kb7 {[%clk 0:00:37]} 43. Ra1 {[%clk 0:00:16]}  Rf4 {[%clk 0:00:31]} 44. Rb1+ {[%clk 0:00:16]}  Kc8 {[%clk 0:00:31]} 45. Rh1 {[%clk 0:00:17]}  R8f7 {[%clk 0:00:29]} 46. Rh5 {[%clk 0:00:16]}  g4 {[%clk 0:00:27]} 47. Nxe5 {[%clk 0:00:17]}  Bxe5 {[%clk 0:00:26]} 48. Rxe5 {[%clk 0:00:18]}  Rg7 {[%clk 0:00:21]} 49. Rc5 {[%clk 0:00:15]}  Kd7 {[%clk 0:00:21]} 50. Rh5 {[%clk 0:00:16]}  Kd6 {[%clk 0:00:21]} 51. Rh4 {[%clk 0:00:16]}  Kc5 {[%clk 0:00:19]} 52. Kd2 {[%clk 0:00:15]}  Kb4 {[%clk 0:00:19]} 53. Rh1 {[%clk 0:00:16]}  c5 {[%clk 0:00:17]} 54. Rb1+ {[%clk 0:00:16]}  Ka5 {[%clk 0:00:18]} 55. Rb8 {[%clk 0:00:16]}  Rg5 {[%clk 0:00:17]} 56. Ke2 {[%clk 0:00:16]}  Ka4 {[%clk 0:00:16]} 57. Rg1 {[%clk 0:00:16]}  Ka5 {[%clk 0:00:17]} 58. Ra1# {[%clk 0:00:15]} 1-0


[Site "https://www.chess.com"]